Workbook

Sheet Menu (hidden)
B1: Menu
A3: Umsatzsteuer | B3: Umsatzsteuersatz | C3: EBI oder TZW
A4: Ja | B4: 0.19 | C4: Ja
A5: Nein | B5: 0.07 | C5: Nein

Sheet Hinweise zum Ausfüllen

Sheet Gesamtprojektkosten
A1: Gesamtprojektkosten
A2: Partnernummer | B2: 1 | C2: 2 | D2: 3 | E2: 4 | F2: 5 | G2: 6
A3: Partnername | B3: ='Partner 1'!C6 -> Partner 1 | C3: ='Partner 2'!B1 -> Partner 2 | D3: ='Partner 3'!B1 -> Partner 3 | E3: ='Partner 4'!B1 -> Partner 4 | F3: ='Partner 5'!B1 -> Partner 5 | G3: ='Partner 6'!B1 -> Partner 6 | H3: Summe
A4: Personalkosten | B4: ='Partner 1'!B7 -> 0 | C4: ='Partner 2'!B7 -> 0 | D4: ='Partner 3'!B7 -> 0 | E4: ='Partner 4'!B7 -> 0 | F4: ='Partner 5'!B7 -> 0 | G4: ='Partner 6'!B7 -> 0 | H4: =Tabelle2[[#This Row],[DBI]]+Tabelle2[[#This Row],[02]]+Tabelle2[[#This Row],[03]]+Tabelle2[[#This Row],[04]]+Tabelle2[[#This Row],[05]]+Tabelle2[[#This Row],[06]] -> 0
A5: Personenmonate Wiss. MA (PM) | B5: ='Partner 1'!B8 -> 0 | C5: ='Partner 2'!B8 -> 0 | D5: ='Partner 3'!B8 -> 0 | E5: ='Partner 4'!B8 -> 0 | F5: ='Partner 5'!B8 -> 0 | G5: ='Partner 6'!B7 -> 0 | H5: =Tabelle2[[#This Row],[DBI]]+Tabelle2[[#This Row],[02]]+Tabelle2[[#This Row],[03]]+Tabelle2[[#This Row],[04]]+Tabelle2[[#This Row],[05]]+Tabelle2[[#This Row],[06]] -> 0
A6: Allgemeinkostenzuschlag Personal (gem.Förderbestimmung) | B6: ='Partner 1'!B9 -> 0 | C6: ='Partner 2'!B9 -> 0 | D6: ='Partner 3'!B9 -> 0 | E6: ='Partner 4'!B9 -> 0 | F6: ='Partner 5'!B9 -> 0 | G6: ='Partner 6'!B9 -> 0 | H6: =Tabelle2[[#This Row],[DBI]]+Tabelle2[[#This Row],[02]]+Tabelle2[[#This Row],[03]]+Tabelle2[[#This Row],[04]]+Tabelle2[[#This Row],[05]]+Tabelle2[[#This Row],[06]] -> 0
A7: Sachkosten | B7: ='Partner 1'!B10 -> 0 | C7: ='Partner 2'!B10 -> 0 | D7: ='Partner 3'!B10 -> 0 | E7: ='Partner 4'!B10 -> 0 | F7: ='Partner 5'!B10 -> 0 | G7: ='Partner 6'!B10 -> 0 | H7: =Tabelle2[[#This Row],[DBI]]+Tabelle2[[#This Row],[02]]+Tabelle2[[#This Row],[03]]+Tabelle2[[#This Row],[04]]+Tabelle2[[#This Row],[05]]+Tabelle2[[#This Row],[06]] -> 0
A8: Reisekosten | B8: ='Partner 1'!B11 -> 0 | C8: ='Partner 2'!B11 -> 0 | D8: ='Partner 3'!B11 -> 0 | E8: ='Partner 1'!E11 -> 0 | F8: ='Partner 5'!B11 -> 0 | G8: ='Partner 6'!B11 -> 0 | H8: =Tabelle2[[#This Row],[DBI]]+Tabelle2[[#This Row],[02]]+Tabelle2[[#This Row],[03]]+Tabelle2[[#This Row],[04]]+Tabelle2[[#This Row],[05]]+Tabelle2[[#This Row],[06]] -> 0
A9: Fremdleistungen | B9: ='Partner 1'!B12 -> 0 | C9: ='Partner 2'!B12 -> 0 | D9: ='Partner 3'!B12 -> 0 | E9: ='Partner 4'!B12 -> 0 | F9: ='Partner 5'!B12 -> 0 | G9: ='Partner 6'!B12 -> 0 | H9: =Tabelle2[[#This Row],[DBI]]+Tabelle2[[#This Row],[02]]+Tabelle2[[#This Row],[03]]+Tabelle2[[#This Row],[04]]+Tabelle2[[#This Row],[05]]+Tabelle2[[#This Row],[06]] -> 0
A10: Sonstige Kosten | B10: ='Partner 1'!B13 -> 0 | C10: ='Partner 2'!B13 -> 0 | D10: ='Partner 3'!B14 -> 0 | E10: ='Partner 1'!E13 -> 0 | F10: ='Partner 5'!B13 -> 0 | G10: ='Partner 6'!B13 -> 0 | H10: =Tabelle2[[#This Row],[DBI]]+Tabelle2[[#This Row],[02]]+Tabelle2[[#This Row],[03]]+Tabelle2[[#This Row],[04]]+Tabelle2[[#This Row],[05]]+Tabelle2[[#This Row],[06]] -> 0
A11: Gesamtkosten netto | B11: ='Partner 1'!B14 -> 0 | C11: ='Partner 2'!B14 -> 0 | D11: ='Partner 1'!D14 -> 0 | E11: ='Partner 4'!B14 -> 0 | F11: ='Partner 5'!B14 -> 0 | G11: ='Partner 6'!B14 -> 0 | H11: =Tabelle2[[#This Row],[DBI]]+Tabelle2[[#This Row],[02]]+Tabelle2[[#This Row],[03]]+Tabelle2[[#This Row],[04]]+Tabelle2[[#This Row],[05]]+Tabelle2[[#This Row],[06]] -> 0
A12: Umsatzsteuer | B12: ='Partner 1'!B15 -> 0 | C12: ='Partner 2'!B15 -> 0 | D12: ='Partner 3'!B15 -> 0 | E12: ='Partner 4'!B15 -> 0 | F12: ='Partner 5'!B15 -> 0 | G12: ='Partner 6'!B15 -> 0 | H12: =Tabelle2[[#This Row],[DBI]]+Tabelle2[[#This Row],[02]]+Tabelle2[[#This Row],[03]]+Tabelle2[[#This Row],[04]]+Tabelle2[[#This Row],[05]]+Tabelle2[[#This Row],[06]] -> 0
A13: Gesamtkosten brutto | B13: ='Partner 1'!B16 -> 0 | C13: ='Partner 2'!B16 -> 0 | D13: ='Partner 3'!B16 -> 0 | E13: ='Partner 4'!B16 -> 0 | F13: ='Partner 5'!B16 -> 0 | G13: ='Partner 6'!B16 -> 0 | H13: =Tabelle2[[#This Row],[DBI]]+Tabelle2[[#This Row],[02]]+Tabelle2[[#This Row],[03]]+Tabelle2[[#This Row],[04]]+Tabelle2[[#This Row],[05]]+Tabelle2[[#This Row],[06]] -> 0
A15: Drittmittel (öffentliche Zuwendung) | B15: ='Partner 1'!B18 -> 0 | C15: ='Partner 2'!B18 -> 0 | D15: ='Partner 3'!B18 -> 0 | E15: ='Partner 4'!B18 -> 0 | F15: ='Partner 5'!B18 -> 0 | G15: ='Partner 6'!B18 -> 0 | H15: =SUM(B15:G15) -> 0
A16: Eigenanteil (Forschungsnehmer) | B16: ='Partner 1'!B19 -> 0 | C16: ='Partner 2'!B19 -> 0 | D16: ='Partner 3'!B19 -> 0 | E16: ='Partner 4'!B19 -> 0 | F16: ='Partner 5'!B19 -> 0 | G16: ='Partner 6'!B19 -> 0 | H16: =SUM(B16:G16) -> 0
A17: finanzielle Beteiligung (Industrie/ Verbände/Versorger) | B17: ='Partner 1'!B20 -> 0 | C17: ='Partner 2'!B20 -> 0 | D17: ='Partner 3'!B20 -> 0 | E17: ='Partner 4'!B20 -> 0 | F17: ='Partner 5'!B20 -> 0 | G17: ='Partner 6'!B20 -> 0 | H17: =SUM(B17:G17) -> 0
A18: DVGW-Förderung | B18: ='Partner 1'!B21 -> 0 | C18: ='Partner 2'!B21 -> 0 | D18: ='Partner 3'!B21 -> 0 | E18: ='Partner 4'!B21 -> 0 | F18: ='Partner 5'!B21 -> 0 | G18: ='Partner 6'!B21 -> 0 | H18: =SUM(B18:G18) -> 0

Sheet Partner 1
A1: Projektpartner 1 | B1: Partner 1 | G1: Umsatzsteuerpflichtig* | K1: *verpflichtend, bitte auswählen
G2: Umsatzsteuersatz*
G3: EBI oder TZW?*
G4: Allgemeinkostenzuschlag Personal (in %) | K4: gem. Förderbestimmungen
A6: Einzelkostensplan: | C6: =B1 -> Partner 1
A7: Personalkosten | B7: =C34 -> 0 | D7: Erläuterung zum Einzelkostenplan:
A8: Personenmonate (PM Wiss. MA) | B8: =D27+E27+F27+G27+H27+I27+J27+K27+L27+M27+D28+E28+F28+G28+H28+I28+J28+K28+L28+M28 -> 0
A9: Allgemeinkostenzuschlag Personal (gem. Förderbestimmung) | B9: =B7*J4/100 -> 0
A10: Sachkosten | B10: =C49 -> 0
A11: Reisekosten | B11: =C94 -> 0
A12: Fremdleistungen | B12: =C64 -> 0
A13: Sonstige Kosten | B13: =C79 -> 0
A14: Gesamtkosten netto | B14: =B7+B9+B10+B11+B12+B13 -> 0
A15: Umsatzsteuer | B15: =B14*J2 -> 0
A16: Gesamtkosten brutto | B16: =B14+B15 -> 0
A18: Drittmittel (öffentliche Zuwendung) | B18: =C100*-1 -> 0
A19: Eigenanteil (Forschungsnehmer) | B19: =C105*-1 -> 0
A20: finanzielle Beteiligung (Industrie/ Verbände/ Versorger) | B20: =C115*-1 -> 0
A21: DVGW-Förderung | B21: =B16+B18+B19+B20 -> 0
A24: Personalkosten
A25: Personengruppe (m/w/d) | B25: Arbeitsgeberbrutto (Monat) ** | C25: Summe Personalkosten | D25: Personenmonate
D26: AP 1 | E26: AP 2 | F26: AP 3 | G26: AP 4 | H26: AP 5 | I26: AP 6 | J26: AP 7 | K26: AP 8 | L26: AP 9 | M26: AP 10
A27: Wissenschaftler MA Projektmanager/-leiter | C27: =B27* (D27+E27+F27+G27+H27+I27+J27+K27+L27+M27) -> 0
A28: Wissenschaftler*in | C28: 0
A29: Techniker*in | C29: 0
A30: Laborant*in | C30: 0
A31: Hilfskraft | C31: =B31* (D31+E31+F31+G31+H31+I31+J31+K31+L31+M31) -> 0
A32: Personengruppe | C32: 0
A33: Personengruppe | C33: 0
A34: Summe Personalkosten: | C34: =C27+C28+C29+C30+C31+C32+C33 -> 0 | D34: ** siehe Hinweise zum Ausfüllen
A37: Sachkosten
A38: Sachmittel | C38: Summe Sachkosten | D38: Personenmoate
D39: AP 1 | E39: AP 2 | F39: AP 3 | G39: AP 4 | H39: AP 5 | I39: AP 6 | J39: AP 7 | K39: AP 8 | L39: AP 9 | M39: AP 10
A40: Sachmittel (bitte benennen) | C40: =D40+E40+F40+G40+H40+I40+J40+K40+L40+M40 -> 0 | D40: 0 | E40: 0 | F40: 0 | G40: 0 | H40: 0 | I40: 0 | J40: 0 | K40: 0 | L40: 0 | M40: 0
A41: Sachmittel (bitte benennen) | C41: 0 | D41: 0 | E41: 0 | F41: 0 | G41: 0 | H41: 0 | I41: 0 | J41: 0 | K41: 0 | L41: 0 | M41: 0
A42: Sachmittel (bitte benennen) | C42: 0 | D42: 0 | E42: 0 | F42: 0 | G42: 0 | H42: 0 | I42: 0 | J42: 0 | K42: 0 | L42: 0 | M42: 0
A43: Sachmittel (bitte benennen) | C43: 0 | D43: 0 | E43: 0 | F43: 0 | G43: 0 | H43: 0 | I43: 0 | J43: 0 | K43: 0 | L43: 0 | M43: 0
A44: Sachmittel (bitte benennen) | C44: 0 | D44: 0 | E44: 0 | F44: 0 | G44: 0 | H44: 0 | I44: 0 | J44: 0 | K44: 0 | L44: 0 | M44: 0
A45: Sachmittel (bitte benennen) | C45: 0 | D45: 0 | E45: 0 | F45: 0 | G45: 0 | H45: 0 | I45: 0 | J45: 0 | K45: 0 | L45: 0 | M45: 0
A46: Sachmittel (bitte benennen) | C46: 0 | D46: 0 | E46: 0 | F46: 0 | G46: 0 | H46: 0 | I46: 0 | J46: 0 | K46: 0 | L46: 0 | M46: 0
A47: Sachmittel (bitte benennen) | C47: 0 | D47: 0 | E47: 0 | F47: 0 | G47: 0 | H47: 0 | I47: 0 | J47: 0 | K47: 0 | L47: 0 | M47: 0
A48: Sachmittel (bitte benennen) | C48: 0 | D48: 0 | E48: 0 | F48: 0 | G48: 0 | H48: 0 | I48: 0 | J48: 0 | K48: 0 | L48: 0 | M48: 0
A49: Summe Sachkosten: | C49: =C40+C41+C42+C43+C44+C45+C46+C47+C48 -> 0
A52: Unterauftrag
A53: Unterauftragsnehmer | B53: Art der Dienstleitung | C53: Summe Unterauftrag
D54: AP 1 | E54: AP 2 | F54: AP 3 | G54: AP 4 | H54: AP 5 | I54: AP 6 | J54: AP 7 | K54: AP 8 | L54: AP 9 | M54: AP 10
A55: (bitte benennen) | B55: (bitte benennen) | C55: =D55+E55+F55+G55+H55+I55+J55+K55+L55+M55 -> 0 | D55: 0 | E55: 0 | F55: 0 | G55: 0 | H55: 0 | I55: 0 | J55: 0 | K55: 0 | L55: 0 | M55: 0
A56: (bitte benennen) | B56: (bitte benennen) | C56: =D56+E56+F56+G56+H56+I56+J56+K56+L56+M56 -> 0 | D56: 0 | E56: 0 | F56: 0 | G56: 0 | H56: 0 | I56: 0 | J56: 0 | K56: 0 | L56: 0 | M56: 0
A57: (bitte benennen) | B57: (bitte benennen) | C57: 0 | D57: 0 | E57: 0 | F57: 0 | G57: 0 | H57: 0 | I57: 0 | J57: 0 | K57: 0 | L57: 0 | M57: 0
A58: (bitte benennen) | B58: (bitte benennen) | C58: 0 | D58: 0 | E58: 0 | F58: 0 | G58: 0 | H58: 0 | I58: 0 | J58: 0 | K58: 0 | L58: 0 | M58: 0
A59: (bitte benennen) | B59: (bitte benennen) | C59: 0 | D59: 0 | E59: 0 | F59: 0 | G59: 0 | H59: 0 | I59: 0 | J59: 0 | K59: 0 | L59: 0 | M59: 0
A60: (bitte benennen) | B60: (bitte benennen) | C60: 0 | D60: 0 | E60: 0 | F60: 0 | G60: 0 | H60: 0 | I60: 0 | J60: 0 | K60: 0 | L60: 0 | M60: 0
A61: (bitte benennen) | B61: (bitte benennen) | C61: 0 | D61: 0 | E61: 0 | F61: 0 | G61: 0 | H61: 0 | I61: 0 | J61: 0 | K61: 0 | L61: 0 | M61: 0
A62: (bitte benennen) | B62: (bitte benennen) | C62: 0 | D62: 0 | E62: 0 | F62: 0 | G62: 0 | H62: 0 | I62: 0 | J62: 0 | K62: 0 | L62: 0 | M62: 0
A63: (bitte benennen) | B63: (bitte benennen) | C63: 0 | D63: 0 | E63: 0 | F63: 0 | G63: 0 | H63: 0 | I63: 0 | J63: 0 | K63: 0 | L63: 0 | M63: 0
A64: Summe Unterauftrag: | C64: =C55+C56+C57+C58+C59+C60+C61+C62+C63 -> 0
A67: Sonstige Kosten
C68: Summe Sonstige Kosten
D69: AP 1 | E69: AP 2 | F69: AP 3 | G69: AP 4 | H69: AP 5 | I69: AP 6 | J69: AP 7 | K69: AP 8 | L69: AP 9 | M69: AP 10
A70: (bitte benennen) | C70: =D70+E70+F70+G70+H70+I70+J70+K70+L70+M70 -> 0 | D70: 0 | E70: 0 | F70: 0 | G70: 0 | H70: 0 | I70: 0 | J70: 0 | K70: 0 | L70: 0 | M70: 0
A71: (bitte benennen) | C71: =D71+E71+F71+G71+H71+I71+J71+K71+L71+M71 -> 0 | D71: 0 | E71: 0 | F71: 0 | G71: 0 | H71: 0 | I71: 0 | J71: 0 | K71: 0 | L71: 0 | M71: 0
A72: (bitte benennen) | C72: 0 | D72: 0 | E72: 0 | F72: 0 | G72: 0 | H72: 0 | I72: 0 | J72: 0 | K72: 0 | L72: 0 | M72: 0
A73: (bitte benennen) | C73: 0 | D73: 0 | E73: 0 | F73: 0 | G73: 0 | H73: 0 | I73: 0 | J73: 0 | K73: 0 | L73: 0 | M73: 0
A74: (bitte benennen) | C74: 0 | D74: 0 | E74: 0 | F74: 0 | G74: 0 | H74: 0 | I74: 0 | J74: 0 | K74: 0 | L74: 0 | M74: 0
A75: (bitte benennen) | C75: 0 | D75: 0 | E75: 0 | F75: 0 | G75: 0 | H75: 0 | I75: 0 | J75: 0 | K75: 0 | L75: 0 | M75: 0
A76: (bitte benennen) | C76: 0 | D76: 0 | E76: 0 | F76: 0 | G76: 0 | H76: 0 | I76: 0 | J76: 0 | K76: 0 | L76: 0 | M76: 0
A77: (bitte benennen) | C77: 0 | D77: 0 | E77: 0 | F77: 0 | G77: 0 | H77: 0 | I77: 0 | J77: 0 | K77: 0 | L77: 0 | M77: 0
A78: (bitte benennen) | C78: 0 | D78: 0 | E78: 0 | F78: 0 | G78: 0 | H78: 0 | I78: 0 | J78: 0 | K78: 0 | L78: 0 | M78: 0
A79: Summe Sonstige Kosten: | C79: =C70+C71+C72+C73+C74+C75+C76+C77+C78 -> 0
A82: Reisekosten
C83: €
A85: (bitte benennen) | C85: 0
A86: (bitte benennen) | C86: 0
A87: (bitte benennen) | C87: 0
A88: (bitte benennen) | C88: 0
A89: (bitte benennen) | C89: 0
A90: (bitte benennen) | C90: 0
A91: (bitte benennen) | C91: 0
A92: (bitte benennen) | C92: 0
A93: (bitte benennen) | C93: 0
A94: Summe Reisekosten: | C94: =C85+C86+C87+C88+C89+C90+C91+C92+C93 -> 0
A97: Drittmittel (öffentliche Zuwendung)
A98: Beschreibung
A100: Betrag gem. Zuwendungsbescheid | C100: 0
A102: Eigenleistung (Forschungsnehmer)
A103: Beschreibung
A105: Betrag Eigenleistung | C105: 0
A107: finanzielle Beteiligung (Industrie/Verbände/Versorger)
A108: Art | B108: Unterstützer | C108: € | D108: Beschreibung
A109: Art der Beteiligung
A110: Art der Beteiligung
A111: Art der Beteiligung
A112: Art der Beteiligung
A113: Art der Beteiligung
A114: Art der Beteiligung
A115: Betrag Eigenleistung | C115: =C109+C110+C111+C112+C113+C114 -> 0
A117: Art der Beteiligung
A118: Geldleistung
A119: Sachmittel
A120: Dienstleistung

Sheet Partner 2
A1: Projektpartner 2 | B1: Partner 2 | G1: Umsatzsteuerpflichtig* | K1: *verpflichtend, bitte auswählen
G2: Umsatzsteuersatz*
G3: EBI oder TZW?*
G4: Allgemeinkostenzuschlag Personal (in %) | K4: gem. Förderbestimmungen
A6: Einzelkostensplan: | C6: =B1 -> Partner 2
A7: Personalkosten | B7: =C34 -> 0 | D7: Erläuterung zum Einzelkostenplan:
A8: Personenmonate (PM Wiss. MA) | B8: =D27+E27+F27+G27+H27+I27+J27+K27+L27+M27+D28+E28+F28+G28+H28+I28+J28+K28+L28+M28 -> 0
A9: Allgemeinkostenzuschlag Personal (gem. Förderbestimmung) | B9: =B7*J4/100 -> 0
A10: Sachkosten | B10: =C49 -> 0
A11: Reisekosten | B11: =C94 -> 0
A12: Fremdleistungen | B12: =C64 -> 0
A13: Sonstige Kosten | B13: =C79 -> 0
A14: Gesamtkosten netto | B14: =B7+B9+B10+B11+B12+B13 -> 0
A15: Umsatzsteuer | B15: =B14*J2 -> 0
A16: Gesamtkosten brutto | B16: =B14+B15 -> 0
A18: Drittmittel (öffentliche Zuwendung) | B18: =C100*-1 -> 0
A19: Eigenanteil (Forschungsnehmer) | B19: =C105*-1 -> 0
A20: finanzielle Beteiligung (Industrie/ Verbände/ Versorger) | B20: =C115*-1 -> 0
A21: DVGW-Förderung | B21: =B16+B18+B19+B20 -> 0
A24: Personalkosten
A25: Personengruppe (m/w/d) | B25: Arbeitsgeberbrutto (Monat) ** | C25: Summe Personalkosten | D25: Personenmonate
D26: AP 1 | E26: AP 2 | F26: AP 3 | G26: AP 4 | H26: AP 5 | I26: AP 6 | J26: AP 7 | K26: AP 8 | L26: AP 9 | M26: AP 10
A27: Wissenschaftler MA Projektmanager/-leiter | C27: =B27* (D27+E27+F27+G27+H27+I27+J27+K27+L27+M27) -> 0
A28: Wissenschaftler*in | C28: 0
A29: Techniker*in | C29: 0
A30: Laborant*in | C30: 0
A31: Hilfskraft | C31: 0
A32: Personengruppe | C32: 0
A33: Personengruppe | C33: 0
A34: Summe Personalkosten: | C34: =C27+C28+C29+C30+C31+C32+C33 -> 0 | D34: ** siehe Hinweise zum Ausfüllen
A37: Sachkosten
A38: Sachmittel | C38: Summe Sachkosten | D38: Personenmoate
D39: AP 1 | E39: AP 2 | F39: AP 3 | G39: AP 4 | H39: AP 5 | I39: AP 6 | J39: AP 7 | K39: AP 8 | L39: AP 9 | M39: AP 10
A40: Sachmittel (bitte benennen) | C40: =D40+E40+F40+G40+H40+I40+J40+K40+L40+M40 -> 0 | D40: 0 | E40: 0 | F40: 0 | G40: 0 | H40: 0 | I40: 0 | J40: 0 | K40: 0 | L40: 0 | M40: 0
A41: Sachmittel (bitte benennen) | C41: 0 | D41: 0 | E41: 0 | F41: 0 | G41: 0 | H41: 0 | I41: 0 | J41: 0 | K41: 0 | L41: 0 | M41: 0
A42: Sachmittel (bitte benennen) | C42: 0 | D42: 0 | E42: 0 | F42: 0 | G42: 0 | H42: 0 | I42: 0 | J42: 0 | K42: 0 | L42: 0 | M42: 0
A43: Sachmittel (bitte benennen) | C43: 0 | D43: 0 | E43: 0 | F43: 0 | G43: 0 | H43: 0 | I43: 0 | J43: 0 | K43: 0 | L43: 0 | M43: 0
A44: Sachmittel (bitte benennen) | C44: 0 | D44: 0 | E44: 0 | F44: 0 | G44: 0 | H44: 0 | I44: 0 | J44: 0 | K44: 0 | L44: 0 | M44: 0
A45: Sachmittel (bitte benennen) | C45: 0 | D45: 0 | E45: 0 | F45: 0 | G45: 0 | H45: 0 | I45: 0 | J45: 0 | K45: 0 | L45: 0 | M45: 0
A46: Sachmittel (bitte benennen) | C46: 0 | D46: 0 | E46: 0 | F46: 0 | G46: 0 | H46: 0 | I46: 0 | J46: 0 | K46: 0 | L46: 0 | M46: 0
A47: Sachmittel (bitte benennen) | C47: 0 | D47: 0 | E47: 0 | F47: 0 | G47: 0 | H47: 0 | I47: 0 | J47: 0 | K47: 0 | L47: 0 | M47: 0
A48: Sachmittel (bitte benennen) | C48: 0 | D48: 0 | E48: 0 | F48: 0 | G48: 0 | H48: 0 | I48: 0 | J48: 0 | K48: 0 | L48: 0 | M48: 0
A49: Summe Sachkosten: | C49: =C40+C41+C42+C43+C44+C45+C46+C47+C48 -> 0
A52: Unterauftrag
A53: Unterauftragsnehmer | B53: Art der Dienstleitung | C53: Summe Unterauftrag
D54: AP 1 | E54: AP 2 | F54: AP 3 | G54: AP 4 | H54: AP 5 | I54: AP 6 | J54: AP 7 | K54: AP 8 | L54: AP 9 | M54: AP 10
A55: (bitte benennen) | B55: (bitte benennen) | C55: =D55+E55+F55+G55+H55+I55+J55+K55+L55+M55 -> 0 | D55: 0 | E55: 0 | F55: 0 | G55: 0 | H55: 0 | I55: 0 | J55: 0 | K55: 0 | L55: 0 | M55: 0
A56: (bitte benennen) | B56: (bitte benennen) | C56: 0 | D56: 0 | E56: 0 | F56: 0 | G56: 0 | H56: 0 | I56: 0 | J56: 0 | K56: 0 | L56: 0 | M56: 0
A57: (bitte benennen) | B57: (bitte benennen) | C57: 0 | D57: 0 | E57: 0 | F57: 0 | G57: 0 | H57: 0 | I57: 0 | J57: 0 | K57: 0 | L57: 0 | M57: 0
A58: (bitte benennen) | B58: (bitte benennen) | C58: 0 | D58: 0 | E58: 0 | F58: 0 | G58: 0 | H58: 0 | I58: 0 | J58: 0 | K58: 0 | L58: 0 | M58: 0
A59: (bitte benennen) | B59: (bitte benennen) | C59: 0 | D59: 0 | E59: 0 | F59: 0 | G59: 0 | H59: 0 | I59: 0 | J59: 0 | K59: 0 | L59: 0 | M59: 0
A60: (bitte benennen) | B60: (bitte benennen) | C60: 0 | D60: 0 | E60: 0 | F60: 0 | G60: 0 | H60: 0 | I60: 0 | J60: 0 | K60: 0 | L60: 0 | M60: 0
A61: (bitte benennen) | B61: (bitte benennen) | C61: 0 | D61: 0 | E61: 0 | F61: 0 | G61: 0 | H61: 0 | I61: 0 | J61: 0 | K61: 0 | L61: 0 | M61: 0
A62: (bitte benennen) | B62: (bitte benennen) | C62: 0 | D62: 0 | E62: 0 | F62: 0 | G62: 0 | H62: 0 | I62: 0 | J62: 0 | K62: 0 | L62: 0 | M62: 0
A63: (bitte benennen) | B63: (bitte benennen) | C63: 0 | D63: 0 | E63: 0 | F63: 0 | G63: 0 | H63: 0 | I63: 0 | J63: 0 | K63: 0 | L63: 0 | M63: 0
A64: Summe Unterauftrag: | C64: =C55+C56+C57+C58+C59+C60+C61+C62+C63 -> 0
A67: Sonstige Kosten
C68: Summe Sonstige Kosten
D69: AP 1 | E69: AP 2 | F69: AP 3 | G69: AP 4 | H69: AP 5 | I69: AP 6 | J69: AP 7 | K69: AP 8 | L69: AP 9 | M69: AP 10
A70: (bitte benennen) | C70: =D70+E70+F70+G70+H70+I70+J70+K70+L70+M70 -> 0 | D70: 0 | E70: 0 | F70: 0 | G70: 0 | H70: 0 | I70: 0 | J70: 0 | K70: 0 | L70: 0 | M70: 0
A71: (bitte benennen) | C71: =D71+E71+F71+G71+H71+I71+J71+K71+L71+M71 -> 0 | D71: 0 | E71: 0 | F71: 0 | G71: 0 | H71: 0 | I71: 0 | J71: 0 | K71: 0 | L71: 0 | M71: 0
A72: (bitte benennen) | C72: 0 | D72: 0 | E72: 0 | F72: 0 | G72: 0 | H72: 0 | I72: 0 | J72: 0 | K72: 0 | L72: 0 | M72: 0
A73: (bitte benennen) | C73: 0 | D73: 0 | E73: 0 | F73: 0 | G73: 0 | H73: 0 | I73: 0 | J73: 0 | K73: 0 | L73: 0 | M73: 0
A74: (bitte benennen) | C74: 0 | D74: 0 | E74: 0 | F74: 0 | G74: 0 | H74: 0 | I74: 0 | J74: 0 | K74: 0 | L74: 0 | M74: 0
A75: (bitte benennen) | C75: 0 | D75: 0 | E75: 0 | F75: 0 | G75: 0 | H75: 0 | I75: 0 | J75: 0 | K75: 0 | L75: 0 | M75: 0
A76: (bitte benennen) | C76: 0 | D76: 0 | E76: 0 | F76: 0 | G76: 0 | H76: 0 | I76: 0 | J76: 0 | K76: 0 | L76: 0 | M76: 0
A77: (bitte benennen) | C77: 0 | D77: 0 | E77: 0 | F77: 0 | G77: 0 | H77: 0 | I77: 0 | J77: 0 | K77: 0 | L77: 0 | M77: 0
A78: (bitte benennen) | C78: 0 | D78: 0 | E78: 0 | F78: 0 | G78: 0 | H78: 0 | I78: 0 | J78: 0 | K78: 0 | L78: 0 | M78: 0
A79: Summe Sonstige Kosten: | C79: =C70+C71+C72+C73+C74+C75+C76+C77+C78 -> 0
A82: Reisekosten
C83: €
A85: (bitte benennen) | C85: 0
A86: (bitte benennen) | C86: 0
A87: (bitte benennen) | C87: 0
A88: (bitte benennen) | C88: 0
A89: (bitte benennen) | C89: 0
A90: (bitte benennen) | C90: 0
A91: (bitte benennen) | C91: 0
A92: (bitte benennen) | C92: 0
A93: (bitte benennen) | C93: 0
A94: Summe Reisekosten: | C94: =C85+C86+C87+C88+C89+C90+C91+C92+C93 -> 0
A97: Drittmittel (öffentliche Zuwendung)
A98: Beschreibung
A100: Betrag gem. Zuwendungsbescheid | C100: 0
A102: Eigenleistung (Forschungsnehmer)
A103: Beschreibung
A105: Betrag Eigenleistung | C105: 0
A107: finanzielle Beteiligung (Industrie/Verbände/Versorger)
A108: Art | B108: Unterstützer | C108: € | D108: Beschreibung
A109: Art der Beteiligung
A110: Art der Beteiligung
A111: Art der Beteiligung
A112: Art der Beteiligung
A113: Art der Beteiligung
A114: Art der Beteiligung
A115: Betrag Eigenleistung | C115: =C109+C110+C111+C112+C113+C114 -> 0
A117: Art der Beteiligung
A118: Geldleistung
A119: Sachmittel
A120: Dienstleistung

Sheet Partner 3
A1: Projektpartner 3 | B1: Partner 3 | G1: Umsatzsteuerpflichtig* | K1: *verpflichtend, bitte auswählen
G2: Umsatzsteuersatz*
G3: EBI oder TZW?*
G4: Allgemeinkostenzuschlag Personal (in %) | J4: 20 | K4: gem. Förderbestimmungen
A6: Einzelkostensplan: | C6: =B1 -> Partner 3
A7: Personalkosten | B7: =C34 -> 0 | D7: Erläuterung zum Einzelkostenplan:
A8: Personenmonate (PM Wiss. MA) | B8: =D27+E27+F27+G27+H27+I27+J27+K27+L27+M27+D28+E28+F28+G28+H28+I28+J28+K28+L28+M28 -> 0
A9: Allgemeinkostenzuschlag Personal (gem. Förderbestimmung) | B9: =B7*J4/100 -> 0
A10: Sachkosten | B10: =C49 -> 0
A11: Reisekosten | B11: =C94 -> 0
A12: Fremdleistungen | B12: =C64 -> 0
A13: Sonstige Kosten | B13: =C79 -> 0
A14: Gesamtkosten netto | B14: =B7+B9+B10+B11+B12+B13 -> 0
A15: Umsatzsteuer | B15: =B14*J2 -> 0
A16: Gesamtkosten brutto | B16: =B14+B15 -> 0
A18: Drittmittel (öffentliche Zuwendung) | B18: =C100*-1 -> 0
A19: Eigenanteil (Forschungsnehmer) | B19: =C105*-1 -> 0
A20: finanzielle Beteiligung (Industrie/ Verbände/ Versorger) | B20: =C115*-1 -> 0
A21: DVGW-Förderung | B21: =B16+B18+B19+B20 -> 0
A24: Personalkosten
A25: Personengruppe (m/w/d) | B25: Arbeitsgeberbrutto (Monat) ** | C25: Summe Personalkosten | D25: Personenmonate
D26: AP 1 | E26: AP 2 | F26: AP 3 | G26: AP 4 | H26: AP 5 | I26: AP 6 | J26: AP 7 | K26: AP 8 | L26: AP 9 | M26: AP 10
A27: Wissenschaftler MA Projektmanager/-leiter | C27: =B27* (D27+E27+F27+G27+H27+I27+J27+K27+L27+M27) -> 0
A28: Wissenschaftler*in | C28: 0
A29: Techniker*in | C29: 0
A30: Laborant*in | C30: 0
A31: Hilfskraft | C31: 0
A32: Personengruppe | C32: 0
A33: Personengruppe | C33: 0
A34: Summe Personalkosten: | C34: =C27+C28+C29+C30+C31+C32+C33 -> 0 | D34: ** siehe Hinweise zum Ausfüllen
A37: Sachkosten
A38: Sachmittel | C38: Summe Sachkosten | D38: Personenmoate
D39: AP 1 | E39: AP 2 | F39: AP 3 | G39: AP 4 | H39: AP 5 | I39: AP 6 | J39: AP 7 | K39: AP 8 | L39: AP 9 | M39: AP 10
A40: Sachmittel (bitte benennen) | C40: =D40+E40+F40+G40+H40+I40+J40+K40+L40+M40 -> 0 | D40: 0 | E40: 0 | F40: 0 | G40: 0 | H40: 0 | I40: 0 | J40: 0 | K40: 0 | L40: 0 | M40: 0
A41: Sachmittel (bitte benennen) | C41: 0 | D41: 0 | E41: 0 | F41: 0 | G41: 0 | H41: 0 | I41: 0 | J41: 0 | K41: 0 | L41: 0 | M41: 0
A42: Sachmittel (bitte benennen) | C42: 0 | D42: 0 | E42: 0 | F42: 0 | G42: 0 | H42: 0 | I42: 0 | J42: 0 | K42: 0 | L42: 0 | M42: 0
A43: Sachmittel (bitte benennen) | C43: 0 | D43: 0 | E43: 0 | F43: 0 | G43: 0 | H43: 0 | I43: 0 | J43: 0 | K43: 0 | L43: 0 | M43: 0
A44: Sachmittel (bitte benennen) | C44: 0 | D44: 0 | E44: 0 | F44: 0 | G44: 0 | H44: 0 | I44: 0 | J44: 0 | K44: 0 | L44: 0 | M44: 0
A45: Sachmittel (bitte benennen) | C45: 0 | D45: 0 | E45: 0 | F45: 0 | G45: 0 | H45: 0 | I45: 0 | J45: 0 | K45: 0 | L45: 0 | M45: 0
A46: Sachmittel (bitte benennen) | C46: 0 | D46: 0 | E46: 0 | F46: 0 | G46: 0 | H46: 0 | I46: 0 | J46: 0 | K46: 0 | L46: 0 | M46: 0
A47: Sachmittel (bitte benennen) | C47: 0 | D47: 0 | E47: 0 | F47: 0 | G47: 0 | H47: 0 | I47: 0 | J47: 0 | K47: 0 | L47: 0 | M47: 0
A48: Sachmittel (bitte benennen) | C48: 0 | D48: 0 | E48: 0 | F48: 0 | G48: 0 | H48: 0 | I48: 0 | J48: 0 | K48: 0 | L48: 0 | M48: 0
A49: Summe Sachkosten: | C49: =C40+C41+C42+C43+C44+C45+C46+C47+C48 -> 0
A52: Unterauftrag
A53: Unterauftragsnehmer | B53: Art der Dienstleitung | C53: Summe Unterauftrag
D54: AP 1 | E54: AP 2 | F54: AP 3 | G54: AP 4 | H54: AP 5 | I54: AP 6 | J54: AP 7 | K54: AP 8 | L54: AP 9 | M54: AP 10
A55: (bitte benennen) | B55: (bitte benennen) | C55: =D55+E55+F55+G55+H55+I55+J55+K55+L55+M55 -> 0 | D55: 0 | E55: 0 | F55: 0 | G55: 0 | H55: 0 | I55: 0 | J55: 0 | K55: 0 | L55: 0 | M55: 0
A56: (bitte benennen) | B56: (bitte benennen) | C56: 0 | D56: 0 | E56: 0 | F56: 0 | G56: 0 | H56: 0 | I56: 0 | J56: 0 | K56: 0 | L56: 0 | M56: 0
A57: (bitte benennen) | B57: (bitte benennen) | C57: 0 | D57: 0 | E57: 0 | F57: 0 | G57: 0 | H57: 0 | I57: 0 | J57: 0 | K57: 0 | L57: 0 | M57: 0
A58: (bitte benennen) | B58: (bitte benennen) | C58: 0 | D58: 0 | E58: 0 | F58: 0 | G58: 0 | H58: 0 | I58: 0 | J58: 0 | K58: 0 | L58: 0 | M58: 0
A59: (bitte benennen) | B59: (bitte benennen) | C59: 0 | D59: 0 | E59: 0 | F59: 0 | G59: 0 | H59: 0 | I59: 0 | J59: 0 | K59: 0 | L59: 0 | M59: 0
A60: (bitte benennen) | B60: (bitte benennen) | C60: 0 | D60: 0 | E60: 0 | F60: 0 | G60: 0 | H60: 0 | I60: 0 | J60: 0 | K60: 0 | L60: 0 | M60: 0
A61: (bitte benennen) | B61: (bitte benennen) | C61: 0 | D61: 0 | E61: 0 | F61: 0 | G61: 0 | H61: 0 | I61: 0 | J61: 0 | K61: 0 | L61: 0 | M61: 0
A62: (bitte benennen) | B62: (bitte benennen) | C62: 0 | D62: 0 | E62: 0 | F62: 0 | G62: 0 | H62: 0 | I62: 0 | J62: 0 | K62: 0 | L62: 0 | M62: 0
A63: (bitte benennen) | B63: (bitte benennen) | C63: 0 | D63: 0 | E63: 0 | F63: 0 | G63: 0 | H63: 0 | I63: 0 | J63: 0 | K63: 0 | L63: 0 | M63: 0
A64: Summe Unterauftrag: | C64: =C55+C56+C57+C58+C59+C60+C61+C62+C63 -> 0
A67: Sonstige Kosten
C68: Summe Sonstige Kosten
D69: AP 1 | E69: AP 2 | F69: AP 3 | G69: AP 4 | H69: AP 5 | I69: AP 6 | J69: AP 7 | K69: AP 8 | L69: AP 9 | M69: AP 10
A70: (bitte benennen) | C70: =D70+E70+F70+G70+H70+I70+J70+K70+L70+M70 -> 0 | D70: 0 | E70: 0 | F70: 0 | G70: 0 | H70: 0 | I70: 0 | J70: 0 | K70: 0 | L70: 0 | M70: 0
A71: (bitte benennen) | C71: =D71+E71+F71+G71+H71+I71+J71+K71+L71+M71 -> 0 | D71: 0 | E71: 0 | F71: 0 | G71: 0 | H71: 0 | I71: 0 | J71: 0 | K71: 0 | L71: 0 | M71: 0
A72: (bitte benennen) | C72: 0 | D72: 0 | E72: 0 | F72: 0 | G72: 0 | H72: 0 | I72: 0 | J72: 0 | K72: 0 | L72: 0 | M72: 0
A73: (bitte benennen) | C73: 0 | D73: 0 | E73: 0 | F73: 0 | G73: 0 | H73: 0 | I73: 0 | J73: 0 | K73: 0 | L73: 0 | M73: 0
A74: (bitte benennen) | C74: 0 | D74: 0 | E74: 0 | F74: 0 | G74: 0 | H74: 0 | I74: 0 | J74: 0 | K74: 0 | L74: 0 | M74: 0
A75: (bitte benennen) | C75: 0 | D75: 0 | E75: 0 | F75: 0 | G75: 0 | H75: 0 | I75: 0 | J75: 0 | K75: 0 | L75: 0 | M75: 0
A76: (bitte benennen) | C76: 0 | D76: 0 | E76: 0 | F76: 0 | G76: 0 | H76: 0 | I76: 0 | J76: 0 | K76: 0 | L76: 0 | M76: 0
A77: (bitte benennen) | C77: 0 | D77: 0 | E77: 0 | F77: 0 | G77: 0 | H77: 0 | I77: 0 | J77: 0 | K77: 0 | L77: 0 | M77: 0
A78: (bitte benennen) | C78: 0 | D78: 0 | E78: 0 | F78: 0 | G78: 0 | H78: 0 | I78: 0 | J78: 0 | K78: 0 | L78: 0 | M78: 0
A79: Summe Sonstige Kosten: | C79: =C70+C71+C72+C73+C74+C75+C76+C77+C78 -> 0
A82: Reisekosten
C83: €
A85: (bitte benennen) | C85: 0
A86: (bitte benennen) | C86: 0
A87: (bitte benennen) | C87: 0
A88: (bitte benennen) | C88: 0
A89: (bitte benennen) | C89: 0
A90: (bitte benennen) | C90: 0
A91: (bitte benennen) | C91: 0
A92: (bitte benennen) | C92: 0
A93: (bitte benennen) | C93: 0
A94: Summe Reisekosten: | C94: =C85+C86+C87+C88+C89+C90+C91+C92+C93 -> 0
A97: Drittmittel (öffentliche Zuwendung)
A98: Beschreibung
A100: Betrag gem. Zuwendungsbescheid | C100: 0
A102: Eigenleistung (Forschungsnehmer)
A103: Beschreibung
A105: Betrag Eigenleistung | C105: 0
A107: finanzielle Beteiligung (Industrie/Verbände/Versorger)
A108: Art | B108: Unterstützer | C108: € | D108: Beschreibung
A109: Art der Beteiligung
A110: Art der Beteiligung
A111: Art der Beteiligung
A112: Art der Beteiligung
A113: Art der Beteiligung
A114: Art der Beteiligung
A115: Betrag Eigenleistung | C115: =C109+C110+C111+C112+C113+C114 -> 0
A117: Art der Beteiligung
A118: Geldleistung
A119: Sachmittel
A120: Dienstleistung

Sheet Partner 4
A1: Projektpartner 4 | B1: Partner 4 | G1: Umsatzsteuerpflichtig* | K1: *verpflichtend, bitte auswählen
G2: Umsatzsteuersatz*
G3: EBI oder TZW?*
G4: Allgemeinkostenzuschlag Personal (in %) | K4: gem. Förderbestimmungen
A6: Einzelkostensplan: | C6: =B1 -> Partner 4
A7: Personalkosten | B7: =C34 -> 0 | D7: Erläuterung zum Einzelkostenplan:
A8: Personenmonate (PM Wiss. MA) | B8: =D27+E27+F27+G27+H27+I27+J27+K27+L27+M27+D28+E28+F28+G28+H28+I28+J28+K28+L28+M28 -> 0
A9: Allgemeinkostenzuschlag Personal (gem. Förderbestimmung) | B9: =B7*J4/100 -> 0
A10: Sachkosten | B10: =C49 -> 0
A11: Reisekosten | B11: =C94 -> 0
A12: Fremdleistungen | B12: =C64 -> 0
A13: Sonstige Kosten | B13: =C79 -> 0
A14: Gesamtkosten netto | B14: =B7+B9+B10+B11+B12+B13 -> 0
A15: Umsatzsteuer | B15: =B14*J2 -> 0
A16: Gesamtkosten brutto | B16: =B14+B15 -> 0
A18: Drittmittel (öffentliche Zuwendung) | B18: =C100*-1 -> 0
A19: Eigenanteil (Forschungsnehmer) | B19: =C105*-1 -> 0
A20: finanzielle Beteiligung (Industrie/ Verbände/ Versorger) | B20: =C115*-1 -> 0
A21: DVGW-Förderung | B21: =B16+B18+B19+B20 -> 0
A24: Personalkosten
A25: Personengruppe (m/w/d) | B25: Arbeitsgeberbrutto (Monat) ** | C25: Summe Personalkosten | D25: Personenmonate
D26: AP 1 | E26: AP 2 | F26: AP 3 | G26: AP 4 | H26: AP 5 | I26: AP 6 | J26: AP 7 | K26: AP 8 | L26: AP 9 | M26: AP 10
A27: Wissenschaftler MA Projektmanager/-leiter | C27: =B27* (D27+E27+F27+G27+H27+I27+J27+K27+L27+M27) -> 0
A28: Wissenschaftler*in | C28: 0
A29: Techniker*in | C29: 0
A30: Laborant*in | C30: 0
A31: Hilfskraft | C31: 0
A32: Personengruppe | C32: 0
A33: Personengruppe | C33: 0
A34: Summe Personalkosten: | C34: =C27+C28+C29+C30+C31+C32+C33 -> 0 | D34: ** siehe Hinweise zum Ausfüllen
A37: Sachkosten
A38: Sachmittel | C38: Summe Sachkosten | D38: Personenmoate
D39: AP 1 | E39: AP 2 | F39: AP 3 | G39: AP 4 | H39: AP 5 | I39: AP 6 | J39: AP 7 | K39: AP 8 | L39: AP 9 | M39: AP 10
A40: Sachmittel (bitte benennen) | C40: =D40+E40+F40+G40+H40+I40+J40+K40+L40+M40 -> 0 | D40: 0 | E40: 0 | F40: 0 | G40: 0 | H40: 0 | I40: 0 | J40: 0 | K40: 0 | L40: 0 | M40: 0
A41: Sachmittel (bitte benennen) | C41: 0 | D41: 0 | E41: 0 | F41: 0 | G41: 0 | H41: 0 | I41: 0 | J41: 0 | K41: 0 | L41: 0 | M41: 0
A42: Sachmittel (bitte benennen) | C42: 0 | D42: 0 | E42: 0 | F42: 0 | G42: 0 | H42: 0 | I42: 0 | J42: 0 | K42: 0 | L42: 0 | M42: 0
A43: Sachmittel (bitte benennen) | C43: 0 | D43: 0 | E43: 0 | F43: 0 | G43: 0 | H43: 0 | I43: 0 | J43: 0 | K43: 0 | L43: 0 | M43: 0
A44: Sachmittel (bitte benennen) | C44: 0 | D44: 0 | E44: 0 | F44: 0 | G44: 0 | H44: 0 | I44: 0 | J44: 0 | K44: 0 | L44: 0 | M44: 0
A45: Sachmittel (bitte benennen) | C45: 0 | D45: 0 | E45: 0 | F45: 0 | G45: 0 | H45: 0 | I45: 0 | J45: 0 | K45: 0 | L45: 0 | M45: 0
A46: Sachmittel (bitte benennen) | C46: 0 | D46: 0 | E46: 0 | F46: 0 | G46: 0 | H46: 0 | I46: 0 | J46: 0 | K46: 0 | L46: 0 | M46: 0
A47: Sachmittel (bitte benennen) | C47: 0 | D47: 0 | E47: 0 | F47: 0 | G47: 0 | H47: 0 | I47: 0 | J47: 0 | K47: 0 | L47: 0 | M47: 0
A48: Sachmittel (bitte benennen) | C48: 0 | D48: 0 | E48: 0 | F48: 0 | G48: 0 | H48: 0 | I48: 0 | J48: 0 | K48: 0 | L48: 0 | M48: 0
A49: Summe Sachkosten: | C49: =C40+C41+C42+C43+C44+C45+C46+C47+C48 -> 0
A52: Unterauftrag
A53: Unterauftragsnehmer | B53: Art der Dienstleitung | C53: Summe Unterauftrag
D54: AP 1 | E54: AP 2 | F54: AP 3 | G54: AP 4 | H54: AP 5 | I54: AP 6 | J54: AP 7 | K54: AP 8 | L54: AP 9 | M54: AP 10
A55: (bitte benennen) | B55: (bitte benennen) | C55: =D55+E55+F55+G55+H55+I55+J55+K55+L55+M55 -> 0 | D55: 0 | E55: 0 | F55: 0 | G55: 0 | H55: 0 | I55: 0 | J55: 0 | K55: 0 | L55: 0 | M55: 0
A56: (bitte benennen) | B56: (bitte benennen) | C56: 0 | D56: 0 | E56: 0 | F56: 0 | G56: 0 | H56: 0 | I56: 0 | J56: 0 | K56: 0 | L56: 0 | M56: 0
A57: (bitte benennen) | B57: (bitte benennen) | C57: 0 | D57: 0 | E57: 0 | F57: 0 | G57: 0 | H57: 0 | I57: 0 | J57: 0 | K57: 0 | L57: 0 | M57: 0
A58: (bitte benennen) | B58: (bitte benennen) | C58: 0 | D58: 0 | E58: 0 | F58: 0 | G58: 0 | H58: 0 | I58: 0 | J58: 0 | K58: 0 | L58: 0 | M58: 0
A59: (bitte benennen) | B59: (bitte benennen) | C59: 0 | D59: 0 | E59: 0 | F59: 0 | G59: 0 | H59: 0 | I59: 0 | J59: 0 | K59: 0 | L59: 0 | M59: 0
A60: (bitte benennen) | B60: (bitte benennen) | C60: 0 | D60: 0 | E60: 0 | F60: 0 | G60: 0 | H60: 0 | I60: 0 | J60: 0 | K60: 0 | L60: 0 | M60: 0
A61: (bitte benennen) | B61: (bitte benennen) | C61: 0 | D61: 0 | E61: 0 | F61: 0 | G61: 0 | H61: 0 | I61: 0 | J61: 0 | K61: 0 | L61: 0 | M61: 0
A62: (bitte benennen) | B62: (bitte benennen) | C62: 0 | D62: 0 | E62: 0 | F62: 0 | G62: 0 | H62: 0 | I62: 0 | J62: 0 | K62: 0 | L62: 0 | M62: 0
A63: (bitte benennen) | B63: (bitte benennen) | C63: 0 | D63: 0 | E63: 0 | F63: 0 | G63: 0 | H63: 0 | I63: 0 | J63: 0 | K63: 0 | L63: 0 | M63: 0
A64: Summe Unterauftrag: | C64: =C55+C56+C57+C58+C59+C60+C61+C62+C63 -> 0
A67: Sonstige Kosten
C68: Summe Sonstige Kosten
D69: AP 1 | E69: AP 2 | F69: AP 3 | G69: AP 4 | H69: AP 5 | I69: AP 6 | J69: AP 7 | K69: AP 8 | L69: AP 9 | M69: AP 10
A70: (bitte benennen) | C70: =D70+E70+F70+G70+H70+I70+J70+K70+L70+M70 -> 0 | D70: 0 | E70: 0 | F70: 0 | G70: 0 | H70: 0 | I70: 0 | J70: 0 | K70: 0 | L70: 0 | M70: 0
A71: (bitte benennen) | C71: =D71+E71+F71+G71+H71+I71+J71+K71+L71+M71 -> 0 | D71: 0 | E71: 0 | F71: 0 | G71: 0 | H71: 0 | I71: 0 | J71: 0 | K71: 0 | L71: 0 | M71: 0
A72: (bitte benennen) | C72: 0 | D72: 0 | E72: 0 | F72: 0 | G72: 0 | H72: 0 | I72: 0 | J72: 0 | K72: 0 | L72: 0 | M72: 0
A73: (bitte benennen) | C73: 0 | D73: 0 | E73: 0 | F73: 0 | G73: 0 | H73: 0 | I73: 0 | J73: 0 | K73: 0 | L73: 0 | M73: 0
A74: (bitte benennen) | C74: 0 | D74: 0 | E74: 0 | F74: 0 | G74: 0 | H74: 0 | I74: 0 | J74: 0 | K74: 0 | L74: 0 | M74: 0
A75: (bitte benennen) | C75: 0 | D75: 0 | E75: 0 | F75: 0 | G75: 0 | H75: 0 | I75: 0 | J75: 0 | K75: 0 | L75: 0 | M75: 0
A76: (bitte benennen) | C76: 0 | D76: 0 | E76: 0 | F76: 0 | G76: 0 | H76: 0 | I76: 0 | J76: 0 | K76: 0 | L76: 0 | M76: 0
A77: (bitte benennen) | C77: 0 | D77: 0 | E77: 0 | F77: 0 | G77: 0 | H77: 0 | I77: 0 | J77: 0 | K77: 0 | L77: 0 | M77: 0
A78: (bitte benennen) | C78: 0 | D78: 0 | E78: 0 | F78: 0 | G78: 0 | H78: 0 | I78: 0 | J78: 0 | K78: 0 | L78: 0 | M78: 0
A79: Summe Sonstige Kosten: | C79: =C70+C71+C72+C73+C74+C75+C76+C77+C78 -> 0
A82: Reisekosten
C83: €
A85: (bitte benennen) | C85: 0
A86: (bitte benennen) | C86: 0
A87: (bitte benennen) | C87: 0
A88: (bitte benennen) | C88: 0
A89: (bitte benennen) | C89: 0
A90: (bitte benennen) | C90: 0
A91: (bitte benennen) | C91: 0
A92: (bitte benennen) | C92: 0
A93: (bitte benennen) | C93: 0
A94: Summe Reisekosten: | C94: =C85+C86+C87+C88+C89+C90+C91+C92+C93 -> 0
A97: Drittmittel (öffentliche Zuwendung)
A98: Beschreibung
A100: Betrag gem. Zuwendungsbescheid | C100: 0
A102: Eigenleistung (Forschungsnehmer)
A103: Beschreibung
A105: Betrag Eigenleistung | C105: 0
A107: finanzielle Beteiligung (Industrie/Verbände/Versorger)
A108: Art | B108: Unterstützer | C108: € | D108: Beschreibung
A109: Art der Beteiligung
A110: Art der Beteiligung
A111: Art der Beteiligung
A112: Art der Beteiligung
A113: Art der Beteiligung
A114: Art der Beteiligung
A115: Betrag Eigenleistung | C115: =C109+C110+C111+C112+C113+C114 -> 0
A117: Art der Beteiligung
A118: Geldleistung
A119: Sachmittel
A120: Dienstleistung

Sheet Partner 5
A1: Projektpartner 5 | B1: Partner 5 | G1: Umsatzsteuerpflichtig* | K1: *verpflichtend, bitte auswählen
G2: Umsatzsteuersatz*
G3: EBI oder TZW?*
G4: Allgemeinkostenzuschlag Personal (in %) | K4: gem. Förderbestimmungen
A6: Einzelkostensplan: | C6: =B1 -> Partner 5
A7: Personalkosten | B7: =C34 -> 0 | D7: Erläuterung zum Einzelkostenplan:
A8: Personenmonate (PM Wiss. MA) | B8: =D27+E27+F27+G27+H27+I27+J27+K27+L27+M27+D28+E28+F28+G28+H28+I28+J28+K28+L28+M28 -> 0
A9: Allgemeinkostenzuschlag Personal (gem. Förderbestimmung) | B9: =B7*J4/100 -> 0
A10: Sachkosten | B10: =C49 -> 0
A11: Reisekosten | B11: =C94 -> 0
A12: Fremdleistungen | B12: =C64 -> 0
A13: Sonstige Kosten | B13: =C79 -> 0
A14: Gesamtkosten netto | B14: =B7+B9+B10+B11+B12+B13 -> 0
A15: Umsatzsteuer | B15: =B14*J2 -> 0
A16: Gesamtkosten brutto | B16: =B14+B15 -> 0
A18: Drittmittel (öffentliche Zuwendung) | B18: =C100*-1 -> 0
A19: Eigenanteil (Forschungsnehmer) | B19: =C105*-1 -> 0
A20: finanzielle Beteiligung (Industrie/ Verbände/ Versorger) | B20: =C115*-1 -> 0
A21: DVGW-Förderung | B21: =B16+B18+B19+B20 -> 0
A24: Personalkosten
A25: Personengruppe (m/w/d) | B25: Arbeitsgeberbrutto (Monat) ** | C25: Summe Personalkosten | D25: Personenmonate
D26: AP 1 | E26: AP 2 | F26: AP 3 | G26: AP 4 | H26: AP 5 | I26: AP 6 | J26: AP 7 | K26: AP 8 | L26: AP 9 | M26: AP 10
A27: Wissenschaftler MA Projektmanager/-leiter | C27: =B27* (D27+E27+F27+G27+H27+I27+J27+K27+L27+M27) -> 0
A28: Wissenschaftler*in | C28: 0
A29: Techniker*in | C29: 0
A30: Laborant*in | C30: 0
A31: Hilfskraft | C31: 0
A32: Personengruppe | C32: 0
A33: Personengruppe | C33: 0
A34: Summe Personalkosten: | C34: =C27+C28+C29+C30+C31+C32+C33 -> 0 | D34: ** siehe Hinweise zum Ausfüllen
A37: Sachkosten
A38: Sachmittel | C38: Summe Sachkosten | D38: Personenmoate
D39: AP 1 | E39: AP 2 | F39: AP 3 | G39: AP 4 | H39: AP 5 | I39: AP 6 | J39: AP 7 | K39: AP 8 | L39: AP 9 | M39: AP 10
A40: Sachmittel (bitte benennen) | C40: =D40+E40+F40+G40+H40+I40+J40+K40+L40+M40 -> 0 | D40: 0 | E40: 0 | F40: 0 | G40: 0 | H40: 0 | I40: 0 | J40: 0 | K40: 0 | L40: 0 | M40: 0
A41: Sachmittel (bitte benennen) | C41: 0 | D41: 0 | E41: 0 | F41: 0 | G41: 0 | H41: 0 | I41: 0 | J41: 0 | K41: 0 | L41: 0 | M41: 0
A42: Sachmittel (bitte benennen) | C42: 0 | D42: 0 | E42: 0 | F42: 0 | G42: 0 | H42: 0 | I42: 0 | J42: 0 | K42: 0 | L42: 0 | M42: 0
A43: Sachmittel (bitte benennen) | C43: 0 | D43: 0 | E43: 0 | F43: 0 | G43: 0 | H43: 0 | I43: 0 | J43: 0 | K43: 0 | L43: 0 | M43: 0
A44: Sachmittel (bitte benennen) | C44: 0 | D44: 0 | E44: 0 | F44: 0 | G44: 0 | H44: 0 | I44: 0 | J44: 0 | K44: 0 | L44: 0 | M44: 0
A45: Sachmittel (bitte benennen) | C45: 0 | D45: 0 | E45: 0 | F45: 0 | G45: 0 | H45: 0 | I45: 0 | J45: 0 | K45: 0 | L45: 0 | M45: 0
A46: Sachmittel (bitte benennen) | C46: 0 | D46: 0 | E46: 0 | F46: 0 | G46: 0 | H46: 0 | I46: 0 | J46: 0 | K46: 0 | L46: 0 | M46: 0
A47: Sachmittel (bitte benennen) | C47: 0 | D47: 0 | E47: 0 | F47: 0 | G47: 0 | H47: 0 | I47: 0 | J47: 0 | K47: 0 | L47: 0 | M47: 0
A48: Sachmittel (bitte benennen) | C48: 0 | D48: 0 | E48: 0 | F48: 0 | G48: 0 | H48: 0 | I48: 0 | J48: 0 | K48: 0 | L48: 0 | M48: 0
A49: Summe Sachkosten: | C49: =C40+C41+C42+C43+C44+C45+C46+C47+C48 -> 0
A52: Unterauftrag
A53: Unterauftragsnehmer | B53: Art der Dienstleitung | C53: Summe Unterauftrag
D54: AP 1 | E54: AP 2 | F54: AP 3 | G54: AP 4 | H54: AP 5 | I54: AP 6 | J54: AP 7 | K54: AP 8 | L54: AP 9 | M54: AP 10
A55: (bitte benennen) | B55: (bitte benennen) | C55: =D55+E55+F55+G55+H55+I55+J55+K55+L55+M55 -> 0 | D55: 0 | E55: 0 | F55: 0 | G55: 0 | H55: 0 | I55: 0 | J55: 0 | K55: 0 | L55: 0 | M55: 0
A56: (bitte benennen) | B56: (bitte benennen) | C56: 0 | D56: 0 | E56: 0 | F56: 0 | G56: 0 | H56: 0 | I56: 0 | J56: 0 | K56: 0 | L56: 0 | M56: 0
A57: (bitte benennen) | B57: (bitte benennen) | C57: 0 | D57: 0 | E57: 0 | F57: 0 | G57: 0 | H57: 0 | I57: 0 | J57: 0 | K57: 0 | L57: 0 | M57: 0
A58: (bitte benennen) | B58: (bitte benennen) | C58: 0 | D58: 0 | E58: 0 | F58: 0 | G58: 0 | H58: 0 | I58: 0 | J58: 0 | K58: 0 | L58: 0 | M58: 0
A59: (bitte benennen) | B59: (bitte benennen) | C59: 0 | D59: 0 | E59: 0 | F59: 0 | G59: 0 | H59: 0 | I59: 0 | J59: 0 | K59: 0 | L59: 0 | M59: 0
A60: (bitte benennen) | B60: (bitte benennen) | C60: 0 | D60: 0 | E60: 0 | F60: 0 | G60: 0 | H60: 0 | I60: 0 | J60: 0 | K60: 0 | L60: 0 | M60: 0
A61: (bitte benennen) | B61: (bitte benennen) | C61: 0 | D61: 0 | E61: 0 | F61: 0 | G61: 0 | H61: 0 | I61: 0 | J61: 0 | K61: 0 | L61: 0 | M61: 0
A62: (bitte benennen) | B62: (bitte benennen) | C62: 0 | D62: 0 | E62: 0 | F62: 0 | G62: 0 | H62: 0 | I62: 0 | J62: 0 | K62: 0 | L62: 0 | M62: 0
A63: (bitte benennen) | B63: (bitte benennen) | C63: 0 | D63: 0 | E63: 0 | F63: 0 | G63: 0 | H63: 0 | I63: 0 | J63: 0 | K63: 0 | L63: 0 | M63: 0
A64: Summe Unterauftrag: | C64: =C55+C56+C57+C58+C59+C60+C61+C62+C63 -> 0
A67: Sonstige Kosten
C68: Summe Sonstige Kosten
D69: AP 1 | E69: AP 2 | F69: AP 3 | G69: AP 4 | H69: AP 5 | I69: AP 6 | J69: AP 7 | K69: AP 8 | L69: AP 9 | M69: AP 10
A70: (bitte benennen) | C70: =D70+E70+F70+G70+H70+I70+J70+K70+L70+M70 -> 0 | D70: 0 | E70: 0 | F70: 0 | G70: 0 | H70: 0 | I70: 0 | J70: 0 | K70: 0 | L70: 0 | M70: 0
A71: (bitte benennen) | C71: =D71+E71+F71+G71+H71+I71+J71+K71+L71+M71 -> 0 | D71: 0 | E71: 0 | F71: 0 | G71: 0 | H71: 0 | I71: 0 | J71: 0 | K71: 0 | L71: 0 | M71: 0
A72: (bitte benennen) | C72: 0 | D72: 0 | E72: 0 | F72: 0 | G72: 0 | H72: 0 | I72: 0 | J72: 0 | K72: 0 | L72: 0 | M72: 0
A73: (bitte benennen) | C73: 0 | D73: 0 | E73: 0 | F73: 0 | G73: 0 | H73: 0 | I73: 0 | J73: 0 | K73: 0 | L73: 0 | M73: 0
A74: (bitte benennen) | C74: 0 | D74: 0 | E74: 0 | F74: 0 | G74: 0 | H74: 0 | I74: 0 | J74: 0 | K74: 0 | L74: 0 | M74: 0
A75: (bitte benennen) | C75: 0 | D75: 0 | E75: 0 | F75: 0 | G75: 0 | H75: 0 | I75: 0 | J75: 0 | K75: 0 | L75: 0 | M75: 0
A76: (bitte benennen) | C76: 0 | D76: 0 | E76: 0 | F76: 0 | G76: 0 | H76: 0 | I76: 0 | J76: 0 | K76: 0 | L76: 0 | M76: 0
A77: (bitte benennen) | C77: 0 | D77: 0 | E77: 0 | F77: 0 | G77: 0 | H77: 0 | I77: 0 | J77: 0 | K77: 0 | L77: 0 | M77: 0
A78: (bitte benennen) | C78: 0 | D78: 0 | E78: 0 | F78: 0 | G78: 0 | H78: 0 | I78: 0 | J78: 0 | K78: 0 | L78: 0 | M78: 0
A79: Summe Sonstige Kosten: | C79: =C70+C71+C72+C73+C74+C75+C76+C77+C78 -> 0
A82: Reisekosten
C83: €
A85: (bitte benennen) | C85: 0
A86: (bitte benennen) | C86: 0
A87: (bitte benennen) | C87: 0
A88: (bitte benennen) | C88: 0
A89: (bitte benennen) | C89: 0
A90: (bitte benennen) | C90: 0
A91: (bitte benennen) | C91: 0
A92: (bitte benennen) | C92: 0
A93: (bitte benennen) | C93: 0
A94: Summe Reisekosten: | C94: =C85+C86+C87+C88+C89+C90+C91+C92+C93 -> 0
A97: Drittmittel (öffentliche Zuwendung)
A98: Beschreibung
A100: Betrag gem. Zuwendungsbescheid | C100: 0
A102: Eigenleistung (Forschungsnehmer)
A103: Beschreibung
A105: Betrag Eigenleistung | C105: 0
A107: finanzielle Beteiligung (Industrie/Verbände/Versorger)
A108: Art | B108: Unterstützer | C108: € | D108: Beschreibung
A109: Art der Beteiligung
A110: Art der Beteiligung
A111: Art der Beteiligung
A112: Art der Beteiligung
A113: Art der Beteiligung
A114: Art der Beteiligung
A115: Betrag Eigenleistung | C115: =C109+C110+C111+C112+C113+C114 -> 0
A117: Art der Beteiligung
A118: Geldleistung
A119: Sachmittel
A120: Dienstleistung

Sheet Partner 6
A1: Projektpartner 6 | B1: Partner 6 | G1: Umsatzsteuerpflichtig* | K1: *verpflichtend, bitte auswählen
G2: Umsatzsteuersatz*
G3: EBI oder TZW?*
G4: Allgemeinkostenzuschlag Personal (in %) | K4: gem. Förderbestimmungen
A6: Einzelkostensplan: | C6: =B1 -> Partner 6
A7: Personalkosten | B7: =C34 -> 0 | D7: Erläuterung zum Einzelkostenplan:
A8: Personenmonate (PM Wiss. MA) | B8: =D27+E27+F27+G27+H27+I27+J27+K27+L27+M27+D28+E28+F28+G28+H28+I28+J28+K28+L28+M28 -> 0
A9: Allgemeinkostenzuschlag Personal (gem. Förderbestimmung) | B9: =B7*J4/100 -> 0
A10: Sachkosten | B10: =C49 -> 0
A11: Reisekosten | B11: =C94 -> 0
A12: Fremdleistungen | B12: =C64 -> 0
A13: Sonstige Kosten | B13: =C79 -> 0
A14: Gesamtkosten netto | B14: =B7+B9+B10+B11+B12+B13 -> 0
A15: Umsatzsteuer | B15: =B14*J2 -> 0
A16: Gesamtkosten brutto | B16: =B14+B15 -> 0
A18: Drittmittel (öffentliche Zuwendung) | B18: =C100*-1 -> 0
A19: Eigenanteil (Forschungsnehmer) | B19: =C105*-1 -> 0
A20: finanzielle Beteiligung (Industrie/ Verbände/ Versorger) | B20: =C115*-1 -> 0
A21: DVGW-Förderung | B21: =B16+B18+B19+B20 -> 0
A24: Personalkosten
A25: Personengruppe (m/w/d) | B25: Arbeitsgeberbrutto (Monat) ** | C25: Summe Personalkosten | D25: Personenmonate
D26: AP 1 | E26: AP 2 | F26: AP 3 | G26: AP 4 | H26: AP 5 | I26: AP 6 | J26: AP 7 | K26: AP 8 | L26: AP 9 | M26: AP 10
A27: Wissenschaftler MA Projektmanager/-leiter | C27: =B27* (D27+E27+F27+G27+H27+I27+J27+K27+L27+M27) -> 0
A28: Wissenschaftler*in | C28: 0
A29: Techniker*in | C29: 0
A30: Laborant*in | C30: 0
A31: Hilfskraft | C31: 0
A32: Personengruppe | C32: 0
A33: Personengruppe | C33: 0
A34: Summe Personalkosten: | C34: =C27+C28+C29+C30+C31+C32+C33 -> 0 | D34: ** siehe Hinweise zum Ausfüllen
A37: Sachkosten
A38: Sachmittel | C38: Summe Sachkosten | D38: Personenmoate
D39: AP 1 | E39: AP 2 | F39: AP 3 | G39: AP 4 | H39: AP 5 | I39: AP 6 | J39: AP 7 | K39: AP 8 | L39: AP 9 | M39: AP 10
A40: Sachmittel (bitte benennen) | C40: =D40+E40+F40+G40+H40+I40+J40+K40+L40+M40 -> 0 | D40: 0 | E40: 0 | F40: 0 | G40: 0 | H40: 0 | I40: 0 | J40: 0 | K40: 0 | L40: 0 | M40: 0
A41: Sachmittel (bitte benennen) | C41: 0 | D41: 0 | E41: 0 | F41: 0 | G41: 0 | H41: 0 | I41: 0 | J41: 0 | K41: 0 | L41: 0 | M41: 0
A42: Sachmittel (bitte benennen) | C42: 0 | D42: 0 | E42: 0 | F42: 0 | G42: 0 | H42: 0 | I42: 0 | J42: 0 | K42: 0 | L42: 0 | M42: 0
A43: Sachmittel (bitte benennen) | C43: 0 | D43: 0 | E43: 0 | F43: 0 | G43: 0 | H43: 0 | I43: 0 | J43: 0 | K43: 0 | L43: 0 | M43: 0
A44: Sachmittel (bitte benennen) | C44: 0 | D44: 0 | E44: 0 | F44: 0 | G44: 0 | H44: 0 | I44: 0 | J44: 0 | K44: 0 | L44: 0 | M44: 0
A45: Sachmittel (bitte benennen) | C45: 0 | D45: 0 | E45: 0 | F45: 0 | G45: 0 | H45: 0 | I45: 0 | J45: 0 | K45: 0 | L45: 0 | M45: 0
A46: Sachmittel (bitte benennen) | C46: 0 | D46: 0 | E46: 0 | F46: 0 | G46: 0 | H46: 0 | I46: 0 | J46: 0 | K46: 0 | L46: 0 | M46: 0
A47: Sachmittel (bitte benennen) | C47: 0 | D47: 0 | E47: 0 | F47: 0 | G47: 0 | H47: 0 | I47: 0 | J47: 0 | K47: 0 | L47: 0 | M47: 0
A48: Sachmittel (bitte benennen) | C48: 0 | D48: 0 | E48: 0 | F48: 0 | G48: 0 | H48: 0 | I48: 0 | J48: 0 | K48: 0 | L48: 0 | M48: 0
A49: Summe Sachkosten: | C49: =C40+C41+C42+C43+C44+C45+C46+C47+C48 -> 0
A52: Unterauftrag
A53: Unterauftragsnehmer | B53: Art der Dienstleitung | C53: Summe Unterauftrag
D54: AP 1 | E54: AP 2 | F54: AP 3 | G54: AP 4 | H54: AP 5 | I54: AP 6 | J54: AP 7 | K54: AP 8 | L54: AP 9 | M54: AP 10
A55: (bitte benennen) | B55: (bitte benennen) | C55: =D55+E55+F55+G55+H55+I55+J55+K55+L55+M55 -> 0 | D55: 0 | E55: 0 | F55: 0 | G55: 0 | H55: 0 | I55: 0 | J55: 0 | K55: 0 | L55: 0 | M55: 0
A56: (bitte benennen) | B56: (bitte benennen) | C56: 0 | D56: 0 | E56: 0 | F56: 0 | G56: 0 | H56: 0 | I56: 0 | J56: 0 | K56: 0 | L56: 0 | M56: 0
A57: (bitte benennen) | B57: (bitte benennen) | C57: 0 | D57: 0 | E57: 0 | F57: 0 | G57: 0 | H57: 0 | I57: 0 | J57: 0 | K57: 0 | L57: 0 | M57: 0
A58: (bitte benennen) | B58: (bitte benennen) | C58: 0 | D58: 0 | E58: 0 | F58: 0 | G58: 0 | H58: 0 | I58: 0 | J58: 0 | K58: 0 | L58: 0 | M58: 0
A59: (bitte benennen) | B59: (bitte benennen) | C59: 0 | D59: 0 | E59: 0 | F59: 0 | G59: 0 | H59: 0 | I59: 0 | J59: 0 | K59: 0 | L59: 0 | M59: 0
A60: (bitte benennen) | B60: (bitte benennen) | C60: 0 | D60: 0 | E60: 0 | F60: 0 | G60: 0 | H60: 0 | I60: 0 | J60: 0 | K60: 0 | L60: 0 | M60: 0
A61: (bitte benennen) | B61: (bitte benennen) | C61: 0 | D61: 0 | E61: 0 | F61: 0 | G61: 0 | H61: 0 | I61: 0 | J61: 0 | K61: 0 | L61: 0 | M61: 0
A62: (bitte benennen) | B62: (bitte benennen) | C62: 0 | D62: 0 | E62: 0 | F62: 0 | G62: 0 | H62: 0 | I62: 0 | J62: 0 | K62: 0 | L62: 0 | M62: 0
A63: (bitte benennen) | B63: (bitte benennen) | C63: 0 | D63: 0 | E63: 0 | F63: 0 | G63: 0 | H63: 0 | I63: 0 | J63: 0 | K63: 0 | L63: 0 | M63: 0
A64: Summe Unterauftrag: | C64: =C55+C56+C57+C58+C59+C60+C61+C62+C63 -> 0
A67: Sonstige Kosten
C68: Summe Sonstige Kosten
D69: AP 1 | E69: AP 2 | F69: AP 3 | G69: AP 4 | H69: AP 5 | I69: AP 6 | J69: AP 7 | K69: AP 8 | L69: AP 9 | M69: AP 10
A70: (bitte benennen) | C70: =D70+E70+F70+G70+H70+I70+J70+K70+L70+M70 -> 0 | D70: 0 | E70: 0 | F70: 0 | G70: 0 | H70: 0 | I70: 0 | J70: 0 | K70: 0 | L70: 0 | M70: 0
A71: (bitte benennen) | C71: =D71+E71+F71+G71+H71+I71+J71+K71+L71+M71 -> 0 | D71: 0 | E71: 0 | F71: 0 | G71: 0 | H71: 0 | I71: 0 | J71: 0 | K71: 0 | L71: 0 | M71: 0
A72: (bitte benennen) | C72: 0 | D72: 0 | E72: 0 | F72: 0 | G72: 0 | H72: 0 | I72: 0 | J72: 0 | K72: 0 | L72: 0 | M72: 0
A73: (bitte benennen) | C73: 0 | D73: 0 | E73: 0 | F73: 0 | G73: 0 | H73: 0 | I73: 0 | J73: 0 | K73: 0 | L73: 0 | M73: 0
A74: (bitte benennen) | C74: 0 | D74: 0 | E74: 0 | F74: 0 | G74: 0 | H74: 0 | I74: 0 | J74: 0 | K74: 0 | L74: 0 | M74: 0
A75: (bitte benennen) | C75: 0 | D75: 0 | E75: 0 | F75: 0 | G75: 0 | H75: 0 | I75: 0 | J75: 0 | K75: 0 | L75: 0 | M75: 0
A76: (bitte benennen) | C76: 0 | D76: 0 | E76: 0 | F76: 0 | G76: 0 | H76: 0 | I76: 0 | J76: 0 | K76: 0 | L76: 0 | M76: 0
A77: (bitte benennen) | C77: 0 | D77: 0 | E77: 0 | F77: 0 | G77: 0 | H77: 0 | I77: 0 | J77: 0 | K77: 0 | L77: 0 | M77: 0
A78: (bitte benennen) | C78: 0 | D78: 0 | E78: 0 | F78: 0 | G78: 0 | H78: 0 | I78: 0 | J78: 0 | K78: 0 | L78: 0 | M78: 0
A79: Summe Sonstige Kosten: | C79: =C70+C71+C72+C73+C74+C75+C76+C77+C78 -> 0
A82: Reisekosten
C83: €
A85: (bitte benennen) | C85: 0
A86: (bitte benennen) | C86: 0
A87: (bitte benennen) | C87: 0
A88: (bitte benennen) | C88: 0
A89: (bitte benennen) | C89: 0
A90: (bitte benennen) | C90: 0
A91: (bitte benennen) | C91: 0
A92: (bitte benennen) | C92: 0
A93: (bitte benennen) | C93: 0
A94: Summe Reisekosten: | C94: =C85+C86+C87+C88+C89+C90+C91+C92+C93 -> 0
A97: Drittmittel (öffentliche Zuwendung)
A98: Beschreibung
A100: Betrag gem. Zuwendungsbescheid | C100: 0
A102: Eigenleistung (Forschungsnehmer)
A103: Beschreibung
A105: Betrag Eigenleistung | C105: 0
A107: finanzielle Beteiligung (Industrie/Verbände/Versorger)
A108: Art | B108: Unterstützer | C108: € | D108: Beschreibung
A109: Art der Beteiligung
A110: Art der Beteiligung
A111: Art der Beteiligung
A112: Art der Beteiligung
A113: Art der Beteiligung
A114: Art der Beteiligung
A115: Betrag Eigenleistung | C115: =C109+C110+C111+C112+C113+C114 -> 0
A117: Art der Beteiligung
A118: Geldleistung
A119: Sachmittel
A120: Dienstleistung

Sheet Musterbeispiel
A1: Musterbeispiel | B1: Muster | G1: Umsatzsteuerpflichtig* | J1: Nein | K1: *verpflichtend, bitte auswählen
G2: Umsatzsteuersatz*
G3: EBI oder TZW?*
G4: Allgemeinkostenzuschlag Personal (in %) | J4: 20 | K4: gem. Förderbestimmungen
A6: Einzelkostensplan: | C6: =B1 -> Muster
A7: Personalkosten | B7: =C34 -> 102450 | D7: Erläuterung zum Einzelkostenplan:
A8: Personenmonate (PM Wiss. MA) | B8: =D27+E27+F27+G27+H27+I27+J27+K27+L27+M27+D28+E28+F28+G28+H28+I28+J28+K28+L28+M28 -> 10
A9: Allgemeinkostenzuschlag Personal (gem. Förderbestimmung) | B9: =B7*J4/100 -> 20490
A10: Sachkosten | B10: =C49 -> 12850
A11: Reisekosten | B11: =C94 -> 500
A12: Fremdleistungen | B12: =C64 -> 3600
A13: Sonstige Kosten | B13: =C79 -> 3450
A14: Gesamtkosten netto | B14: =B7+B9+B10+B11+B12+B13 -> 143340
A15: Umsatzsteuer | B15: =B14*J2 -> 0
A16: Gesamtkosten brutto | B16: =B14+B15 -> 143340
A18: Drittmittel (öffentliche Zuwendung) | B18: =C100*-1 -> 0
A19: Eigenanteil (Forschungsnehmer) | B19: =C105*-1 -> -3450
A20: finanzielle Beteiligung (Industrie/ Verbände/ Versorger) | B20: =C115*-1 -> -27000
A21: DVGW-Förderung | B21: =B16+B18+B19+B20 -> 112890
A24: Personalkosten
A25: Personengruppe (m/w/d) | B25: Arbeitsgeberbrutto (Monat) ** | C25: Summe Personalkosten | D25: Personenmonate
D26: AP 1 | E26: AP 2 | F26: AP 3 | G26: AP 4 | H26: AP 5 | I26: AP 6 | J26: AP 7 | K26: AP 8 | L26: AP 9 | M26: AP 10
A27: Wissenschaftler MA Projektmanager/-leiter | B27: 9200 | C27: =B27* (D27+E27+F27+G27+H27+I27+J27+K27+L27+M27) -> 41400 | D27: 1 | E27: 0.5 | F27: 2 | G27: 1
A28: Wissenschaftler*in | B28: 8100 | C28: 44550 | D28: 1 | E28: 1 | F28: 3 | G28: 0.5
A29: Techniker*in | B29: 5800 | C29: 5800 | F29: 1
A30: Laborant*in | B30: 5350 | C30: 10700 | F30: 2
A31: Hilfskraft | C31: 0
A32: Personengruppe | C32: 0
A33: Personengruppe | C33: 0
A34: Summe Personalkosten: | C34: =C27+C28+C29+C30+C31+C32+C33 -> 102450 | D34: ** siehe Hinweise zum Ausfüllen /
A37: Sachkosten
A38: Sachmittel | C38: Summe Sachkosten | D38: Personenmoate
D39: AP 1 | E39: AP 2 | F39: AP 3 | G39: AP 4 | H39: AP 5 | I39: AP 6 | J39: AP 7 | K39: AP 8 | L39: AP 9 | M39: AP 10
A40: Flockungsmittel | C40: =D40+E40+F40+G40+H40+I40+J40+K40+L40+M40 -> 2500 | D40: 0 | E40: 2500 | F40: 0 | G40: 0 | H40: 0 | I40: 0 | J40: 0 | K40: 0 | L40: 0 | M40: 0
A41: Wasserstoff | C41: 10350 | D41: 0 | E41: 0 | F41: 10350 | G41: 0 | H41: 0 | I41: 0 | J41: 0 | K41: 0 | L41: 0 | M41: 0
A42: Sachmittel (bitte benennen) | C42: 0 | D42: 0 | E42: 0 | F42: 0 | G42: 0 | H42: 0 | I42: 0 | J42: 0 | K42: 0 | L42: 0 | M42: 0
A43: Sachmittel (bitte benennen) | C43: 0 | D43: 0 | E43: 0 | F43: 0 | G43: 0 | H43: 0 | I43: 0 | J43: 0 | K43: 0 | L43: 0 | M43: 0
A44: Sachmittel (bitte benennen) | C44: 0 | D44: 0 | E44: 0 | F44: 0 | G44: 0 | H44: 0 | I44: 0 | J44: 0 | K44: 0 | L44: 0 | M44: 0
A45: Sachmittel (bitte benennen) | C45: 0 | D45: 0 | E45: 0 | F45: 0 | G45: 0 | H45: 0 | I45: 0 | J45: 0 | K45: 0 | L45: 0 | M45: 0
A46: Sachmittel (bitte benennen) | C46: 0 | D46: 0 | E46: 0 | F46: 0 | G46: 0 | H46: 0 | I46: 0 | J46: 0 | K46: 0 | L46: 0 | M46: 0
A47: Sachmittel (bitte benennen) | C47: 0 | D47: 0 | E47: 0 | F47: 0 | G47: 0 | H47: 0 | I47: 0 | J47: 0 | K47: 0 | L47: 0 | M47: 0
A48: Sachmittel (bitte benennen) | C48: 0 | D48: 0 | E48: 0 | F48: 0 | G48: 0 | H48: 0 | I48: 0 | J48: 0 | K48: 0 | L48: 0 | M48: 0
A49: Summe Sachkosten: | C49: =C40+C41+C42+C43+C44+C45+C46+C47+C48 -> 12850
A52: Unterauftrag
A53: Unterauftragsnehmer | B53: Art der Dienstleitung | C53: Summe Unterauftrag
D54: AP 1 | E54: AP 2 | F54: AP 3 | G54: AP 4 | H54: AP 5 | I54: AP 6 | J54: AP 7 | K54: AP 8 | L54: AP 9 | M54: AP 10
A55: Fa. Mustermann | B55: Durchführung Versuche | C55: =D55+E55+F55+G55+H55+I55+J55+K55+L55+M55 -> 3600 | D55: 0 | E55: 0 | F55: 3600 | G55: 0 | H55: 0 | I55: 0 | J55: 0 | K55: 0 | L55: 0 | M55: 0
A56: (bitte benennen) | B56: (bitte benennen) | C56: 0 | D56: 0 | E56: 0 | F56: 0 | G56: 0 | H56: 0 | I56: 0 | J56: 0 | K56: 0 | L56: 0 | M56: 0
A57: (bitte benennen) | B57: (bitte benennen) | C57: 0 | D57: 0 | E57: 0 | F57: 0 | G57: 0 | H57: 0 | I57: 0 | J57: 0 | K57: 0 | L57: 0 | M57: 0
A58: (bitte benennen) | B58: (bitte benennen) | C58: 0 | D58: 0 | E58: 0 | F58: 0 | G58: 0 | H58: 0 | I58: 0 | J58: 0 | K58: 0 | L58: 0 | M58: 0
A59: (bitte benennen) | B59: (bitte benennen) | C59: 0 | D59: 0 | E59: 0 | F59: 0 | G59: 0 | H59: 0 | I59: 0 | J59: 0 | K59: 0 | L59: 0 | M59: 0
A60: (bitte benennen) | B60: (bitte benennen) | C60: 0 | D60: 0 | E60: 0 | F60: 0 | G60: 0 | H60: 0 | I60: 0 | J60: 0 | K60: 0 | L60: 0 | M60: 0
A61: (bitte benennen) | B61: (bitte benennen) | C61: 0 | D61: 0 | E61: 0 | F61: 0 | G61: 0 | H61: 0 | I61: 0 | J61: 0 | K61: 0 | L61: 0 | M61: 0
A62: (bitte benennen) | B62: (bitte benennen) | C62: 0 | D62: 0 | E62: 0 | F62: 0 | G62: 0 | H62: 0 | I62: 0 | J62: 0 | K62: 0 | L62: 0 | M62: 0
A63: (bitte benennen) | B63: (bitte benennen) | C63: 0 | D63: 0 | E63: 0 | F63: 0 | G63: 0 | H63: 0 | I63: 0 | J63: 0 | K63: 0 | L63: 0 | M63: 0
A64: Summe Unterauftrag: | C64: =C55+C56+C57+C58+C59+C60+C61+C62+C63 -> 3600
A67: Sonstige Kosten
C68: Summe Sonstige Kosten
D69: AP 1 | E69: AP 2 | F69: AP 3 | G69: AP 4 | H69: AP 5 | I69: AP 6 | J69: AP 7 | K69: AP 8 | L69: AP 9 | M69: AP 10
A70: Durchführung eines Workshops mit Versorgungsunternehmen | C70: =D70+E70+F70+G70+H70+I70+J70+K70+L70+M70 -> 3450 | D70: 0 | E70: 0 | F70: 3450 | G70: 0 | H70: 0 | I70: 0 | J70: 0 | K70: 0 | L70: 0 | M70: 0
A71: (bitte benennen) | C71: =D71+E71+F71+G71+H71+I71+J71+K71+L71+M71 -> 0 | D71: 0 | E71: 0 | F71: 0 | G71: 0 | H71: 0 | I71: 0 | J71: 0 | K71: 0 | L71: 0 | M71: 0
A72: (bitte benennen) | C72: 0 | D72: 0 | E72: 0 | F72: 0 | G72: 0 | H72: 0 | I72: 0 | J72: 0 | K72: 0 | L72: 0 | M72: 0
A73: (bitte benennen) | C73: 0 | D73: 0 | E73: 0 | F73: 0 | G73: 0 | H73: 0 | I73: 0 | J73: 0 | K73: 0 | L73: 0 | M73: 0
A74: (bitte benennen) | C74: 0 | D74: 0 | E74: 0 | F74: 0 | G74: 0 | H74: 0 | I74: 0 | J74: 0 | K74: 0 | L74: 0 | M74: 0
A75: (bitte benennen) | C75: 0 | D75: 0 | E75: 0 | F75: 0 | G75: 0 | H75: 0 | I75: 0 | J75: 0 | K75: 0 | L75: 0 | M75: 0
A76: (bitte benennen) | C76: 0 | D76: 0 | E76: 0 | F76: 0 | G76: 0 | H76: 0 | I76: 0 | J76: 0 | K76: 0 | L76: 0 | M76: 0
A77: (bitte benennen) | C77: 0 | D77: 0 | E77: 0 | F77: 0 | G77: 0 | H77: 0 | I77: 0 | J77: 0 | K77: 0 | L77: 0 | M77: 0
A78: (bitte benennen) | C78: 0 | D78: 0 | E78: 0 | F78: 0 | G78: 0 | H78: 0 | I78: 0 | J78: 0 | K78: 0 | L78: 0 | M78: 0
A79: Summe Sonstige Kosten: | C79: =C70+C71+C72+C73+C74+C75+C76+C77+C78 -> 3450
A82: Reisekosten
C83: €
A85: Versuchsbegleitung bei Fa. Mustermann | C85: 500
A86: (bitte benennen) | C86: 0
A87: (bitte benennen) | C87: 0
A88: (bitte benennen) | C88: 0
A89: (bitte benennen) | C89: 0
A90: (bitte benennen) | C90: 0
A91: (bitte benennen) | C91: 0
A92: (bitte benennen) | C92: 0
A93: (bitte benennen) | C93: 0
A94: Summe Reisekosten: | C94: =C85+C86+C87+C88+C89+C90+C91+C92+C93 -> 500
A97: Drittmittel (öffentliche Zuwendung)
A98: Beschreibung
A100: Betrag gem. Zuwendungsbescheid | C100: 0
A102: Eigenleistung (Forschungsnehmer)
A103: Beschreibung
A104: Die Durchführung des Workshops mit Versorgungsunternehmen ist Eigenleistung
A105: Betrag Eigenleistung | C105: 3450
A107: finanzielle Beteiligung (Industrie/Verbände/Versorger)
A108: Art | B108: Unterstützer | C108: € | D108: Beschreibung
A109: Sachmittel | B109: Fa. Wasserstoff GmbH | C109: 5000 | D109: Wasserstoff 500 kg (AP 3)
A110: Dienstleistung | B110: FA. Mustermann | C110: 2000 | D110: Rabatt Versuchsdurchführung
A111: Geldleistung | B111: Fa.xx | C111: 20000 | D111: Unterstützung Projekt
A112: Art der Beteiligung
A113: Art der Beteiligung
A114: Art der Beteiligung
A115: Betrag Eigenleistung | C115: =C109+C110+C111+C112+C113+C114 -> 27000
A117: Art der Beteiligung
A118: Geldleistung
A119: Sachmittel
A120: Dienstleistung
